bitfinex/quotes_ETHUSD_20250622
["timestamp","ask_amount","ask_price","bid_price","bid_amount"]
[1750588195422,1.5996,2259.3,2258.2,4.42816188]
[1750588195423,1.5996,2258.8,2258.2,4.42816188]
[1750588195680,1.5996,2258.6,2258.1,4.42838939]
[1750588195812,1.65495412,2258.6,2257.7,4.42928644]
[1750588196011,9.476,2258.5,2258.4,4.42791356]
[1750588196208,9.476,2258.5,2257.3,7.46]
[1750588196209,9.476,2258.5,2258.2,4.42812698]
[1750588196748,1.5996,2258.3,2257.1,4.430367]
[1750588196928,7.5173588,2258.2,2257.1,4.430367]
[1750588197249,7.5173588,2258.2,2256.4,0.5]
[1750588197250,0.55,2258.0,2256.1,0.5]
[1750588197415,9.53337061,2257.9,2257.5,4.42964821]
[1750588197615,9.478,2257.9,2257.5,4.42967884]
[1750588197838,2.1496,2257.7,2256.0,2.016]
[1750588198145,18.14537677,2257.6,2257.3,4.42993047]
[1750588198317,0.05537626,2257.5,2257.3,4.42995599]
[1750588198644,9.478,2257.4,2257.3,4.42995599]
[1750588199213,10.628,2257.6,2257.5,4.42967884]
[1750588199419,20.106,2257.6,2257.5,4.42967884]
[1750588199829,20.106,2257.6,2257.4,4.42979015]
[1750588200028,0.0553738,2257.5,2257.4,4.42979015]
[1750588200229,0.0553738,2257.5,2256.3,4.43203474]
[1750588200429,9.5533,2257.4,2257.1,4.43035788]
[1750588200634,0.05538301,2257.3,2257.0,4.43053928]
[1750588200855,9.5533,2257.4,2257.2,4.43024023]
[1750588200856,1.5393,2257.4,2257.2,4.43024023]
[1750588201153,9.481,2257.3,2257.2,4.43024023]
[1750588201723,10.4291,2257.3,2257.2,4.43024023]
[1750588201924,9.481,2257.3,2257.2,4.43024023]
[1750588202119,10.628,2257.6,2257.5,4.42967884]
[1750588202423,20.11,2257.6,2257.5,4.42967884]
[1750588203453,10.628,2257.6,2257.5,4.42967884]
[1750588203647,20.112,2257.6,2257.5,4.42967884]
[1750588204156,1.5393,2258.1,2258.0,4.42869796]
[1750588204354,11.0233,2258.1,2258.0,4.42869796]
[1750588206466,11.0243,2258.1,2258.0,4.42869796]
[1750588207756,1.5393,2258.1,2258.0,4.42869796]
[1750588207946,11.0233,2258.1,2258.0,4.42869796]
[1750588208142,4.42899221,2257.9,2256.3,2.018]
[1750588208352,1.5393,2257.6,2256.0,12.654]
[1750588208531,9.53937699,2257.5,2257.2,4.43013401]
[1750588208733,1.16324467,2257.4,2257.2,4.43013401]
[1750588208938,7.467,2257.3,2257.2,4.43013401]
[1750588209184,7.52237697,2257.3,2256.9,4.43073033]
[1750588209355,7.52237697,2257.3,2257.1,4.4304584]
[1750588210060,7.52237697,2257.3,2257.2,4.43026758]
[1750588210261,7.467,2257.3,2257.2,4.43026758]
[1750588210563,0.55,2257.2,2256.1,0.4483231]
[1750588210726,0.55,2257.0,2255.7,0.2221393]
[1750588210927,0.0553949,2256.9,2256.8,4.43105281]
[1750588211161,1.6608,2257.1,2256.9,4.43085648]
[1750588211162,0.0553884,2257.0,2256.9,4.43085648]
[1750588211358,7.5213884,2257.0,2256.9,4.43085648]
[1750588212461,8.15568574,2257.0,2256.9,4.43085648]
[1750588212759,8.10029734,2257.0,2256.9,4.43085648]
[1750588213054,7.466,2257.0,2256.9,4.43085648]
[1750588213278,7.52138556,2257.0,2256.9,4.43085648]
[1750588213670,7.52138556,2257.0,2256.8,4.43102731]
[1750588213857,9.18218556,2257.0,2256.6,4.43132529]
[1750588214058,1.36127365,2256.9,2256.6,4.43132529]
[1750588214365,0.05539267,2256.8,2256.6,4.43132529]
[1750588214658,0.05539267,2256.8,2256.7,4.43124916]
[1750588214834,9.53539267,2256.8,2256.7,4.43124916]
[1750588215165,9.48,2256.8,2256.7,4.43124916]
[1750588215842,1.6608,2257.0,2256.9,4.43085648]
[1750588216038,11.1408,2257.0,2256.9,4.43085648]
[1750588216368,12.26041876,2257.0,2256.7,4.43118446]
[1750588216554,0.05538877,2256.9,2256.8,4.4309571]
[1750588218535,1.6608,2257.0,2256.9,4.43085648]
[1750588218738,9.481,2257.0,2256.9,4.43085648]
[1750588220079,1.6246,2256.9,2256.7,4.43113928]
[1750588220283,0.05539159,2256.8,2256.6,4.43133898]
[1750588220488,7.469,2256.7,2256.5,4.43152316]
[1750588220688,0.05539786,2256.6,2256.5,4.43152316]
[1750588220843,0.05539786,2256.8,2256.6,4.4313642]
[1750588221177,9.481,2256.7,2256.6,4.43144553]
[1750588221545,10.59156,2256.7,2256.5,4.43152088]
[1750588221775,0.05539456,2256.6,2256.5,4.43152088]
[1750588222186,10.59156,2256.7,2256.6,4.43144553]
[1750588222569,9.481,2256.7,2256.6,4.43144553]
[1750588224379,1.6246,2256.9,2256.8,4.43105281]
[1750588224549,11.51663518,2256.9,2256.8,4.43105281]
[1750588224951,11.51862333,2256.9,2256.8,4.43105281]
[1750588225879,11.1066,2256.9,2256.8,4.43105281]
[1750588226048,11.51863103,2256.9,2256.8,4.43105281]
[1750588226474,11.5186354,2256.9,2256.8,4.43105281]
[1750588226682,13.67049894,2256.9,2256.8,4.43105281]
[1750588226982,13.67049976,2256.9,2256.8,4.43105281]
[1750588227150,13.67081768,2256.9,2256.8,4.43105281]
[1750588228346,13.25846354,2256.9,2256.7,4.43114829]
[1750588228684,0.46773141,2256.8,2256.7,4.43114829]
[1750588229088,1.840338,2256.8,2256.6,4.43138736]
[1750588229382,7.88234544,2256.7,2256.6,4.43138736]
[1750588229555,9.89434544,2256.7,2256.6,4.43138736]
[1750588230284,7.88234544,2256.7,2256.6,4.43138736]
[1750588231189,7.88240954,2256.7,2256.6,4.43138736]
[1750588231577,7.88240392,2256.7,2256.6,4.43138736]
[1750588232088,14.88401682,2257.5,2256.5,4.43160373]
[1750588232089,2.012,2257.4,2256.9,4.43070881]
[1750588232385,7.96,2259.2,2257.7,4.42928644]
[1750588232386,7.47,2257.8,2257.7,4.42928644]
[1750588232550,9.89462249,2257.8,2257.7,4.42928644]
[1750588232986,9.89459804,2257.8,2257.7,4.42928644]
[1750588233989,0.41259804,2257.8,2257.7,4.42928644]
[1750588234281,7.88262926,2257.8,2257.7,4.42928644]
[1750588234491,0.41262926,2257.8,2257.7,4.42928644]
[1750588234876,9.482,2257.9,2257.8,4.42909026]
[1750588235049,9.89503921,2257.9,2257.8,4.42909026]
[1750588236786,9.482,2257.9,2257.8,4.42909026]
[1750588237098,9.89512923,2257.9,2257.8,4.42909026]
[1750588237885,10.645,2258.1,2258.0,4.42869796]
[1750588238080,11.05815024,2258.1,2258.0,4.42869796]
[1750588238271,20.53915024,2258.1,2258.0,4.42869796]
[1750588240389,22.59306526,2258.1,2258.0,4.42869796]
[1750588240589,22.17991502,2258.1,2258.0,4.42869796]
[1750588240890,20.126,2258.1,2258.0,4.42869796]
[1750588242684,18.112,2258.1,2258.0,4.42869796]
[1750588244213,2.73470837,2258.5,2258.4,4.42791356]
[1750588244382,4.74470837,2258.5,2258.4,4.42791356]
[1750588244563,12.21170837,2258.5,2258.4,4.42791356]
[1750588244766,12.21070837,2258.5,2258.4,4.42791356]
[1750588246904,12.21070837,2258.5,2257.6,4.42948263]
[1750588246905,13.43177921,2258.5,2257.6,4.42948263]
[1750588247071,0.05535537,2258.4,2258.2,4.42822377]
[1750588247271,7.466,2258.3,2258.2,4.42822377]
[1750588247691,2.73470837,2258.5,2258.4,4.42791356]
[1750588247867,12.20970837,2258.5,2258.4,4.42791356]
[1750588248282,13.59174921,2258.5,2258.4,4.42791356]
[1750588248879,12.20970837,2258.5,2258.4,4.42791356]
[1750588250708,2.73470837,2258.5,2258.4,4.42791356]
[1750588250899,12.20870837,2258.5,2258.4,4.42791356]
[1750588259211,12.20870837,2258.5,2258.2,4.42819866]
[1750588259411,0.0553544,2258.4,2258.3,4.42810963]
[1750588259589,2.73470837,2258.5,2258.4,4.42791356]
[1750588259784,12.20670837,2258.5,2258.4,4.42791356]
[1750588260521,12.20670837,2258.5,2258.3,4.428062]
[1750588260686,13.58844921,2258.5,2258.3,4.428062]
[1750588261515,0.05535109,2258.4,2258.3,4.428062]
[1750588262084,0.46962174,2258.4,2258.3,4.428062]
[1750588262281,0.41427065,2258.4,2258.3,4.428062]
[1750588262522,12.20670837,2258.5,2258.4,4.42791356]
[1750588262682,12.62098269,2258.5,2258.4,4.42791356]
[1750588262885,12.62108343,2258.5,2258.4,4.42791356]
[1750588263347,2.73470837,2258.5,2258.4,4.42791356]
[1750588263590,10.19670837,2258.5,2258.4,4.42791356]
[1750588263790,7.462,2258.5,2258.4,4.42791356]
[1750588266121,7.8764792,2258.5,2258.4,4.42791356]
[1750588266322,7.462,2258.5,2258.4,4.42791356]
[1750588267332,10.34649176,2258.5,2258.4,4.42791356]
[1750588268030,10.34649176,2258.5,2258.3,4.428097]
[1750588268031,10.34649176,2258.5,2258.3,4.42801454]
[1750588268363,9.93203455,2258.5,2258.4,4.42791356]
[1750588268526,10.34653366,2258.5,2258.4,4.42791356]
[1750588268697,12.35453366,2258.5,2258.4,4.42791356]
[1750588268890,12.35453366,2258.5,2258.2,4.42823058]
[1750588268891,12.35453366,2258.5,2258.3,4.42802255]
[1750588269090,1.70537752,2258.4,2258.3,4.42802255]
[1750588269731,1.7053719,2258.4,2258.3,4.42802255]
[1750588269953,1.577,2258.3,2257.2,4.43023685]
[1750588270094,1.577,2258.1,2257.8,4.42892127]
[1750588270420,9.93992894,2258.0,2257.9,4.4288941]
[1750588270612,9.88456554,2258.0,2257.9,4.4288941]
[1750588271013,9.88156554,2258.0,2257.9,4.4288941]
[1750588271214,9.467,2258.0,2257.9,4.4288941]
[1750588272537,1.577,2258.4,2258.3,4.42810963]
[1750588272738,21.45862136,2258.4,2257.7,4.4291]
[1750588272949,0.46997121,2258.3,2258.1,4.42834482]
[1750588273151,10.00169729,2258.2,2257.8,4.42897879]
[1750588273453,1.577,2257.9,2257.7,4.42914389]
[1750588273754,9.52236785,2257.8,2257.7,4.42914389]
[1750588273955,9.467,2257.8,2257.7,4.42914389]
[1750588274441,9.88173902,2257.8,2257.7,4.42914389]
[1750588274638,9.467,2257.8,2257.7,4.42914389]
[1750588277844,16.6344026,2258.4,2258.1,4.42850183]
[1750588277845,1.6021,2258.2,2258.1,4.42850183]
[1750588278019,1.6021,2258.5,2258.3,4.42802141]
[1750588278225,9.88114458,2258.4,2258.3,4.42802141]
[1750588280049,9.88094436,2258.4,2258.3,4.42802141]
[1750588280446,1.5659,2258.3,2257.2,10.0]
[1750588280649,7.92835683,2258.2,2258.1,4.42839144]
[1750588281014,7.87299244,2258.2,2258.1,4.42839144]
[1750588281435,9.87999244,2258.2,2258.1,4.42839144]
[1750588281641,9.466,2258.2,2258.1,4.42839144]
[1750588281838,1.5659,2258.5,2258.4,4.42791356]
[1750588282038,9.88003356,2258.5,2258.3,4.42795663]
[1750588282245,0.46938832,2258.4,2258.3,4.42795663]
[1750588282855,0.46929688,2258.4,2258.3,4.42795663]
[1750588283221,0.46936376,2258.4,2258.3,4.42795663]
[1750588283622,0.4140139,2258.4,2258.3,4.42795663]
[1750588284045,9.466,2258.5,2258.4,4.42791356]
[1750588284232,9.88002783,2258.5,2258.4,4.42791356]
[1750588284633,11.02460654,2258.5,2258.4,4.42791356]
[1750588284830,11.02461006,2258.5,2258.4,4.42791356]
[1750588285947,11.02451738,2258.5,2258.4,4.42791356]
[1750588286156,10.61059278,2258.5,2258.4,4.42791356]
[1750588286329,11.02452251,2258.5,2258.4,4.42791356]
[1750588288466,9.87992973,2258.5,2258.4,4.42791356]
[1750588288966,9.87977128,2258.5,2258.4,4.42791356]
[1750588289361,9.8797805,2258.5,2258.4,4.42791356]
[1750588290881,9.87966851,2258.5,2258.4,4.42791356]
[1750588291932,9.87957854,2258.5,2258.4,4.42791356]
[1750588292966,11.02412639,2258.5,2257.4,10.0]
[1750588293178,10.61054785,2258.5,2258.4,4.42791356]
[1750588293392,11.02395251,2258.5,2257.5,4.42967884]
[1750588293569,11.02395251,2258.5,2256.1,4.661]
[1750588293570,4.97839007,2258.2,2257.7,4.42917881]
[1750588293772,9.46037195,2258.1,2257.8,4.42907946]
[1750588293977,3.97144186,2258.0,2257.7,4.42918264]
[1750588294273,7.51036779,2257.9,2257.7,4.42918264]
[1750588294882,0.05536779,2257.9,2257.8,4.42909026]
[1750588295058,1.5356,2258.1,2257.9,4.4288941]
[1750588295263,0.05536255,2258.1,2258.0,4.42869796]
[1750588295475,0.05536052,2258.2,2258.1,4.42850183]
[1750588295676,2.47532966,2258.2,2258.1,4.42850183]
[1750588296054,9.463,2258.2,2258.1,4.42850183]
[1750588296656,11.6021,2258.5,2258.4,4.42791356]
[1750588296657,1.6021,2258.5,2258.4,4.42791356]
[1750588296851,9.87601208,2258.5,2258.3,4.42807413]
[1750588297050,1.45596383,2258.4,2258.3,4.42807413]
[1750588297251,0.46836093,2258.4,2258.3,4.42807413]
[1750588297465,9.463,2258.5,2258.4,4.42791356]
[1750588297787,2.42001829,2258.5,2258.4,4.42791356]
[1750588298086,9.87501829,2258.5,2258.4,4.42791356]
[1750588298458,9.87511158,2258.5,2258.4,4.42791356]
[1750588299792,9.87510987,2258.5,2258.4,4.42791356]
[1750588299956,11.02283086,2258.5,2258.4,4.42791356]
[1750588300292,11.02283086,2258.5,2257.9,4.42876091]
[1750588300456,10.60972099,2258.5,2258.4,4.42791356]
[1750588300657,11.02280145,2258.5,2258.4,4.42791356]
[1750588301188,11.02273358,2258.5,2258.4,4.42791356]
[1750588301396,11.02277751,2258.5,2258.4,4.42791356]
[1750588301564,11.02277915,2258.5,2258.4,4.42791356]
[1750588301985,9.87507151,2258.5,2258.4,4.42791356]
[1750588302195,9.87506988,2258.5,2258.4,4.42791356]
[1750588303276,9.87506911,2258.5,2258.4,4.42791356]
[1750588303962,9.87500088,2258.5,2258.4,4.42791356]
[1750588304157,12.303,2258.9,2258.8,4.42712944]
[1750588304377,23.40315305,2258.9,2258.8,4.42712944]
[1750588304572,33.40294412,2258.9,2258.8,4.42712944]
[1750588304997,23.40277208,2258.9,2258.8,4.42712944]
[1750588305496,33.40277208,2258.9,2258.8,4.42712944]
[1750588305701,13.05647208,2258.9,2258.8,4.42712944]
[1750588305939,2.23443676,2259.2,2259.1,4.42654154]
[1750588306070,9.456,2259.2,2259.1,4.42654154]
[1750588306898,2.003,2259.2,2259.1,4.42654154]
[1750588307113,9.456,2259.2,2259.1,4.42654154]
[1750588307277,10.4016,2259.2,2259.1,4.42654154]
[1750588307469,9.456,2259.2,2259.1,4.42654154]
[1750588309409,9.454,2259.2,2259.1,4.42654154]
[1750588310105,14.29603078,2259.7,2259.6,4.42556204]
[1750588310285,33.75003078,2259.7,2259.6,4.42556204]
[1750588310484,10.0,2259.6,2259.5,4.4256797]
[1750588311006,13.37500308,2259.6,2259.3,4.42607982]
[1750588311205,0.05532801,2259.5,2259.3,4.42607982]
[1750588311508,7.45,2259.4,2259.3,4.42607982]
[1750588314413,0.05532801,2259.5,2259.4,4.42595379]
[1750588314581,9.50732801,2259.5,2259.4,4.42595379]
[1750588314782,9.452,2259.5,2259.4,4.42595379]
[1750588317238,9.452,2259.5,2259.3,4.42605187]
[1750588317515,13.23097005,2259.5,2259.4,4.42595379]
[1750588319308,9.452,2259.5,2259.4,4.42595379]
[1750588320020,2.003,2259.5,2259.4,4.42595379]
[1750588320221,9.50532497,2259.5,2259.4,4.42595379]
[1750588320443,9.45,2259.5,2259.4,4.42595379]
[1750588320589,1.5133,2259.4,2259.1,4.42652355]
[1750588320786,2.0633,2259.2,2257.9,4.42878616]
[1750588320996,1.5133,2259.0,2257.5,4.42967884]
[1750588321201,9.50334157,2258.9,2258.8,4.42694936]
[1750588321430,9.448,2258.9,2258.8,4.42694936]
[1750588322044,10.54413,2258.9,2258.6,4.42746311]
[1750588322398,10.54413,2258.9,2257.9,10.0]
[1750588322399,2.002,2258.9,2258.8,4.42712944]
[1750588322740,1.5133,2259.3,2259.2,4.42632836]
[1750588322897,10.9623,2259.3,2259.2,4.42632836]
[1750588323099,9.449,2259.3,2259.2,4.42632836]
[1750588323556,10.54523,2259.3,2259.2,4.42632836]
[1750588324315,9.449,2259.3,2259.2,4.42632836]
[1750588325419,1.5133,2259.5,2259.4,4.42595379]
[1750588325620,11.42772348,2259.5,2259.4,4.42595379]
[1750588325852,10.9613,2259.5,2259.4,4.42595379]
[1750588326139,24.8881483,2259.5,2259.4,4.42595379]
[1750588326504,24.88827601,2259.5,2259.4,4.42595379]
[1750588326942,24.47700831,2259.5,2259.4,4.42595379]
[1750588327117,3.5163,2259.5,2259.4,4.42595379]
[1750588327327,9.448,2259.5,2259.4,4.42595379]
[1750588327653,10.0,2259.6,2259.5,4.42575791]
[1750588327956,19.448,2259.6,2259.5,4.42575791]
[1750588328111,12.003,2259.6,2259.5,4.42575791]
[1750588328311,19.447,2259.6,2259.5,4.42575791]
[1750588330838,12.003,2259.6,2259.5,4.42575791]
[1750588331041,19.447,2259.6,2259.5,4.42575791]
[1750588331209,22.66647308,2259.6,2259.5,4.42575791]
[1750588331542,12.74773078,2259.7,2259.6,4.42556204]
[1750588331745,22.19273078,2259.7,2259.6,4.42556204]
[1750588333943,12.74773078,2259.7,2259.6,4.42556204]
[1750588334138,22.18873078,2259.7,2259.6,4.42556204]
[1750588334536,11.54873078,2259.7,2259.6,4.42556204]
[1750588334751,2.10873078,2259.7,2259.6,4.42556204]
[1750588336486,2.16404297,2259.7,2259.6,4.42556204]
[1750588336695,2.10873078,2259.7,2259.6,4.42556204]
[1750588337038,11.54773078,2259.7,2259.6,4.42556204]
[1750588337442,4.10673078,2259.7,2259.6,4.42556204]
[1750588337656,11.54773078,2259.7,2259.6,4.42556204]
[1750588340253,4.10673078,2259.7,2259.6,4.42556204]
[1750588340503,11.54673078,2259.7,2259.6,4.42556204]
[1750588345561,2.10873078,2259.7,2259.6,4.42556204]
[1750588346478,9.54673078,2259.7,2259.6,4.42556204]
[1750588347813,11.54273078,2259.7,2259.6,4.42556204]
[1750588347964,2.10873078,2259.7,2259.6,4.42556204]
[1750588348366,11.54273078,2259.7,2259.6,4.42556204]
[1750588349210,2.10873078,2259.7,2259.6,4.42556204]
[1750588349880,0.66666667,2259.7,2259.6,4.42556204]
[1750588358378,1.89055948,2259.7,2259.5,4.42575584]
[1750588358618,7.434,2259.6,2259.5,4.42575791]
[1750588358904,1.6211,2259.5,2259.1,4.42642069]
[1750588359106,9.24962943,2259.4,2259.1,4.42642069]
[1750588359270,1.997,2259.3,2259.1,4.42642069]
[1750588359469,7.434,2259.2,2259.1,4.42642069]
[1750588360007,11.34806739,2259.4,2259.0,4.42662021]
[1750588360206,9.43,2259.2,2259.1,4.42644549]
[1750588362410,1.6211,2259.5,2259.3,4.42614969]
[1750588362595,1.83524334,2259.7,2259.3,4.42614969]
[1750588362596,0.66666667,2259.7,2259.6,4.42556204]
[1750588362782,8.09966667,2259.7,2259.6,4.42556204]
[1750588364499,0.66666667,2259.7,2259.6,4.42556204]
[1750588364699,8.09966667,2259.7,2259.6,4.42556204]
[1750588370628,9.65406667,2259.7,2259.2,4.42631859]
[1750588371012,9.65406667,2259.7,2259.6,4.42556204]
[1750588372230,10.08866667,2259.7,2259.6,4.42556204]
[1750588375128,8.09566667,2259.7,2259.6,4.42556204]
[1750588378435,0.66666667,2259.7,2259.6,4.42556204]
[1750588383106,11.0791,2259.9,2259.8,4.42517036]
[1750588383343,12.18701,2259.9,2259.8,4.42517036]
[1750588385026,9.418,2259.9,2259.5,4.4257456]
[1750588385255,9.418,2259.9,2259.8,4.42517036]
[1750588388555,1.6573,2260.1,2260.0,4.42477876]
[1750588388781,21.0733,2260.1,2260.0,4.42477876]
[1750588389164,21.0733,2260.1,2259.9,4.42488184]
[1750588389360,23.18063,2260.1,2259.9,4.42488184]
[1750588389884,0.05531181,2260.0,2259.8,4.42509928]
[1750588390054,0.05531181,2260.0,2259.9,4.42497455]
[1750588391860,0.05531181,2260.0,2259.3,4.42597001]
[1750588392055,0.05531181,2260.0,2259.7,4.42527926]
[1750588392269,2.82135503,2260.0,2259.8,4.4251204]
[1750588392488,2.82135503,2260.0,2259.7,4.42527978]
[1750588392787,2.82135503,2260.0,2259.8,4.42507413]
[1750588393494,2.82135503,2260.0,2259.7,4.42528729]
[1750588393649,0.41456375,2259.9,2259.7,4.42528729]
[1750588393853,0.41456375,2259.9,2258.6,10.0]
[1750588393854,1.5064,2259.7,2258.6,10.0]
[1750588394051,2.45687095,2259.6,2258.5,4.42771751]
[1750588394250,7.83620607,2259.5,2259.4,4.42595379]
[1750588394486,7.83619076,2259.5,2259.4,4.42595379]
[1750588394674,7.422,2259.5,2259.4,4.42595379]
[1750588394880,0.41418569,2259.5,2259.4,4.42595379]
[1750588395053,9.82318569,2259.5,2259.4,4.42595379]
[1750588395588,9.409,2259.5,2259.4,4.42595379]
[1750588396149,9.82304999,2259.5,2259.4,4.42595379]
[1750588396590,1.5064,2259.7,2259.6,4.42556204]
[1750588396770,0.41403075,2259.7,2259.6,4.42556204]
[1750588396970,1.987,2259.8,2259.7,4.42536619]
[1750588397177,0.05531294,2260.1,2260.0,4.42477876]
[1750588397378,9.8773989,2260.1,2260.0,4.42477876]
[1750588397586,10.96640656,2260.1,2260.0,4.42477876]
[1750588398293,10.96639163,2260.1,2260.0,4.42477876]
[1750588399391,10.96639163,2260.1,2259.9,4.42488288]
[1750588399583,0.41417174,2260.0,2259.9,4.42488288]
[1750588400183,10.55221989,2260.1,2260.0,4.42477876]
[1750588400380,10.96637676,2260.1,2260.0,4.42477876]
[1750588400666,1.55837676,2260.1,2260.0,4.42477876]
[1750588400893,9.82115687,2260.1,2260.0,4.42477876]
[1750588401063,2.40115687,2260.1,2260.0,4.42477876]
[1750588401262,2.40115687,2260.1,2259.7,4.42536196]
[1750588401263,10.634,2260.5,2260.3,4.42399845]
[1750588401462,9.82141536,2260.4,2260.3,4.42419147]
[1750588401859,9.82130094,2260.4,2260.3,4.42419147]
[1750588403069,9.407,2260.4,2260.3,4.42419147]
[1750588403262,9.82127761,2260.4,2260.3,4.42419147]
[1750588404121,9.82127761,2260.4,2259.6,10.43683964]
[1750588404272,9.407,2260.4,2260.3,4.42419147]
[1750588404473,9.82138273,2260.4,2260.3,4.42419147]
[1750588405694,2.40138273,2260.4,2260.3,4.42419147]
[1750588405903,9.405,2260.4,2260.3,4.42419147]
[1750588406104,9.81911751,2260.4,2260.2,4.42424269]
[1750588406274,11.44737198,2260.4,2259.8,4.42517036]
[1750588406474,9.405,2260.4,2260.3,4.42419147]
[1750588406787,10.0,2260.3,2258.4,4.86046385]
[1750588406984,1.551,2260.0,2259.0,4.42654974]
[1750588407184,9.87218314,2259.9,2259.5,4.42561285]
[1750588407383,2.53821831,2259.8,2259.6,4.42556164]
[1750588407576,0.05532043,2259.7,2259.6,4.42556164]
[1750588407897,0.05532043,2259.7,2259.5,4.42566994]
[1750588408094,0.05532043,2259.7,2258.8,4.42695039]
[1750588408095,7.417,2259.6,2258.8,4.42695039]
[1750588408413,1.551,2259.4,2259.1,4.42637432]
[1750588408706,9.45733012,2259.3,2259.1,4.42637432]
[1750588408914,9.402,2259.3,2259.2,4.4263456]
[1750588412110,2.49470094,2259.4,2259.3,4.42614969]
[1750588412316,9.403,2259.4,2259.2,4.4263456]
[1750588412491,9.403,2259.4,2259.3,4.42614969]
[1750588412688,1.551,2259.7,2258.9,4.42688591]
[1750588412903,9.45832446,2259.6,2259.3,4.42600393]
[1750588413106,1.10093245,2259.5,2259.4,4.42593636]
[1750588414506,9.403,2259.6,2259.5,4.42575791]
[1750588414708,9.403,2259.6,2259.4,4.425908]
[1750588414908,0.05532441,2259.5,2259.4,4.425908]
[1750588416250,9.403,2259.6,2259.5,4.42575791]
[1750588416617,11.14833409,2259.4,2259.3,4.42614969]
[1750588417745,13.2034675,2259.4,2259.3,4.42614969]
[1750588418108,1.5548,2259.3,2259.1,4.42644999]
[1750588418340,7.47033228,2259.2,2259.1,4.42644999]
[1750588420461,7.47033228,2259.2,2259.0,4.42664063]
[1750588420607,2.88951323,2259.1,2259.0,4.42664063]
[1750588421027,2.94484822,2259.1,2259.0,4.42664063]
[1750588421426,11.6616,2259.0,2258.1,4.42847209]
[1750588421661,1.6616,2258.7,2258.1,4.42836002]
[1750588421941,1.6616,2258.5,2258.0,4.42857239]
[1750588422127,8.5811535,2258.4,2258.0,4.42850492]
[1750588422458,8.52579549,2258.4,2258.2,4.42829201]
[1750588422756,8.52579549,2258.4,2258.1,4.42841124]
[1750588423064,1.11179549,2258.4,2258.2,4.42829947]
[1750588423221,1.6616,2258.5,2257.6,10.0]
[1750588423546,9.394,2258.4,2258.3,4.42805823]
[1750588423711,9.394,2258.4,2258.2,4.42830552]
[1750588424337,9.394,2258.4,2257.6,10.0]
[1750588424338,9.394,2258.4,2257.6,14.42939146]
[1750588424533,9.394,2258.4,2258.1,4.42834377]
[1750588424534,10.987137,2258.4,2258.1,4.42834377]
[1750588424709,10.987137,2258.4,2258.0,4.42861422]
[1750588425106,10.987137,2258.4,2258.1,4.42847592]
[1750588425638,0.05535719,2258.3,2258.2,4.42830573]
[1750588426648,1.6616,2258.5,2258.4,4.42791356]
[1750588426952,11.0556,2258.5,2258.4,4.42791356]
[1750588427156,12.16116,2258.5,2258.3,4.42801738]
[1750588427350,9.44935302,2258.4,2258.3,4.42801738]
[1750588427554,9.394,2258.4,2258.3,4.42801738]
[1750588428862,11.5047,2258.9,2258.5,4.42753417]
[1750588429064,10.0,2258.7,2258.5,4.42753417]
[1750588429228,2.15047,2258.8,2258.6,4.42751917]
[1750588429429,9.394,2258.7,2258.6,4.42751917]
[1750588429849,2.15047,2258.8,2258.7,4.42732545]
[1750588430064,21.54447,2258.8,2257.6,0.55]
[1750588430240,10.05534637,2258.7,2258.5,4.42753687]
[1750588430443,3.215328,2258.6,2258.5,4.42753687]
[1750588430768,10.05534636,2258.7,2258.5,4.42753687]
[1750588431064,10.0,2258.7,2258.5,4.42753687]
[1750588431268,0.05534636,2258.6,2258.5,4.42753687]
[1750588431450,11.54447,2258.8,2258.6,4.42743064]
[1750588431655,0.05534513,2258.7,2258.6,4.42743064]
[1750588431858,0.05534513,2258.7,2258.5,4.42761306]
[1750588432348,11.36579664,2258.7,2258.5,4.42761306]
[1750588432532,11.31045151,2258.7,2258.4,4.42783738]
[1750588432726,11.31045151,2258.7,2258.5,4.42771751]
[1750588433243,9.395,2258.6,2258.5,4.42771751]
[1750588433443,9.395,2258.6,2258.1,4.4284542]
[1750588433444,1.5047,2258.9,2258.6,4.42752147]
[1750588433645,10.0,2258.7,2258.6,4.42752147]
[1750588434033,1.15047,2258.8,2258.6,4.42752147]
[1750588434228,1.20581514,2258.8,2258.7,4.42732545]
[1750588434569,9.394,2258.8,2258.7,4.42732545]
[1750588435687,10.633,2259.3,2259.2,4.4263456]
[1750588435832,20.027,2259.3,2259.2,4.4263456]
[1750588436959,20.027,2259.3,2259.1,4.42643826]
[1750588437161,20.027,2259.3,2259.2,4.4263456]
[1750588437534,20.027,2259.3,2259.1,4.42643609]
[1750588437971,20.027,2259.3,2259.2,4.4263456]
[1750588439160,23.14453341,2259.3,2259.2,4.4263456]
[1750588440170,23.14453341,2259.3,2259.1,4.42644848]
[1750588440336,23.14453341,2259.3,2259.1,4.4264117]
[1750588441369,23.14453341,2259.3,2259.2,4.4263456]
[1750588441574,18.043,2259.3,2259.2,4.4263456]
[1750588441745,13.12933409,2259.4,2259.3,4.42614969]
[1750588441935,20.53833409,2259.4,2259.3,4.42614969]
[1750588445185,11.14833409,2259.4,2259.3,4.42614969]
[1750588445486,11.14833409,2259.4,2259.3,14.42614969]
[1750588445786,11.14833409,2259.4,2259.3,14.97614969]
[1750588445984,11.14833409,2259.4,2259.3,14.42614969]
[1750588447880,18.55533409,2259.4,2259.3,4.42614969]
[1750588448251,11.14833409,2259.4,2259.3,4.42614969]
[1750588448447,18.55533409,2259.4,2259.3,4.42614969]
[1750588450895,18.55433409,2259.4,2259.3,4.42614969]
[1750588451055,18.55333409,2259.4,2259.3,4.42614969]
[1750588452962,15.57385031,2259.3,2259.2,4.42630936]
[1750588453180,16.66472351,2259.3,2259.2,4.42630936]
[1750588453905,15.57385031,2259.3,2259.2,4.42630936]
[1750588454460,24.95385031,2259.3,2259.2,4.42630936]
[1750588454662,15.57385031,2259.3,2259.2,4.42630936]
[1750588454913,26.48715031,2259.3,2259.2,4.42630936]
[1750588455558,24.95385031,2259.3,2259.2,4.42630936]
[1750588455760,15.57385031,2259.3,2259.2,4.42630936]
[1750588455960,24.95385031,2259.3,2259.2,4.42630936]
[1750588456200,28.71739875,2259.3,2259.2,4.42630936]
[1750588456503,28.71739875,2259.3,2259.2,4.4263456]
[1750588460496,15.57385031,2259.3,2259.2,4.4263456]
[1750588460660,24.95185031,2259.3,2259.2,4.4263456]
[1750588461189,24.95285031,2259.3,2259.2,4.4263456]
[1750588461696,15.57385031,2259.3,2259.2,4.4263456]
[1750588462089,22.97585031,2259.3,2259.2,4.4263456]
[1750588462899,15.57385031,2259.3,2259.2,4.4263456]
[1750588463099,15.57385031,2259.3,2259.2,14.9763456]